bitfinex/quotes_SOLUSD_20250413
["timestamp","ask_amount","ask_price","bid_price","bid_amount"]
[1744502891800,15.5106,132.78,132.69,89.136]
[1744502891801,18.64964886,132.77,132.69,89.136]
[1744502892097,18.64964886,132.75,132.69,81.5999]
[1744502892311,1.5056,132.74,132.69,7.5362]
[1744502892679,13.77366671,132.72,132.68,14.1767]
[1744502893301,13.77366671,132.73,132.68,27.95036671]
[1744502893780,13.77366671,132.73,132.68,14.1767]
[1744502894776,13.77366671,132.72,132.68,14.1767]
[1744502895387,13.77366671,132.7,132.66,81.5999]
[1744502895584,13.77366671,132.69,132.66,81.5999]
[1744502895785,13.77366671,132.7,132.66,81.5999]
[1744502896399,13.77366671,132.7,132.66,89.1377]
[1744502897482,13.77366671,132.71,132.66,89.1377]
[1744502897890,13.77366671,132.71,132.66,102.91136671]
[1744502898398,13.77366671,132.71,132.66,89.1377]
[1744502898588,21.30886671,132.71,132.66,89.1377]
[1744502898901,13.77366671,132.7,132.66,89.1377]
[1744502902802,21.30946671,132.7,132.66,81.5999]
[1744502903099,13.77366671,132.67,132.64,81.5999]
[1744502903585,13.77366671,132.67,132.64,89.139]
[1744502903780,13.77366671,132.67,132.63,0.063]
[1744502903986,13.77366671,132.64,132.63,0.063]
[1744502905701,21.31286671,132.64,132.63,0.063]
[1744502907501,1.5392,132.65,132.63,0.063]
[1744502907689,13.77366671,132.65,132.63,0.063]
[1744502907892,6.1385,132.67,132.63,0.063]
[1744502908195,13.77366671,132.66,132.63,0.063]
[1744502908384,19.91216671,132.67,132.63,0.063]
[1744502908986,13.77366671,132.66,132.63,0.063]
[1744502910602,6.0757,132.69,132.64,13.77366671]
[1744502910788,13.77366671,132.71,132.64,81.5999]
[1744502910993,29.50976671,132.73,132.67,13.77366671]
[1744502911290,13.77366671,132.72,132.64,81.5999]
[1744502911484,13.77366671,132.71,132.66,13.77366671]
[1744502912004,13.77366671,132.72,132.67,7.5374]
[1744502912296,20.43626671,132.73,132.68,13.77366671]
[1744502913102,6.6626,132.73,132.68,13.77366671]
[1744502913303,13.77366671,132.73,132.68,13.77366671]
[1744502913682,13.77366671,132.74,132.68,13.77366671]
[1744502913888,13.77366671,132.74,132.69,7.5363]
[1744502914099,13.77366671,132.75,132.7,13.77366671]
[1744502914411,20.43626671,132.76,132.71,13.77366671]
[1744502915110,20.43626671,132.76,132.71,21.30836671]
[1744502915811,13.77366671,132.77,132.72,13.77366671]
[1744502916193,13.77366671,132.77,132.72,95.37356671]
[1744502917209,13.77366671,132.76,132.73,7.534]
[1744502917415,13.77366671,132.75,132.72,81.5999]
[1744502917910,13.77366671,132.75,132.72,89.1344]
[1744502918521,13.77366671,132.75,132.72,81.5999]
[1744502921009,13.77366671,132.73,132.72,81.5999]
[1744502921209,13.77366671,132.73,132.69,81.5999]
[1744502921395,13.77366671,132.73,132.69,89.1362]
[1744502924633,13.77366671,132.72,132.69,81.5999]
[1744502928628,13.77366671,132.73,132.69,81.5999]
[1744502929816,21.30776671,132.73,132.69,81.5999]
[1744502930519,0.03,132.79,132.73,46.30624886]
[1744502930703,0.03,132.79,132.75,13.77366671]
[1744502931104,13.77366671,132.78,132.74,6.64]
[1744502931329,0.03,132.79,132.74,6.64]
[1744502931330,13.77366671,132.76,132.74,6.64]
[1744502931503,13.77366671,132.77,132.74,6.64]
[1744502931699,13.80366671,132.79,132.75,7.5329]
[1744502932006,0.03,132.79,132.75,21.30656671]
[1744502932214,13.80366671,132.79,132.75,7.5329]
[1744502932398,0.03,132.79,132.75,7.5329]
[1744502932606,13.80366671,132.79,132.75,7.5329]
[1744502935514,13.80366671,132.79,132.75,89.1328]
[1744502935899,0.03,132.79,132.75,89.1328]
[1744502937023,0.03,132.79,132.75,109.54646671]
[1744502939330,13.80366671,132.79,132.75,95.7728]
[1744502939933,13.80366671,132.79,132.75,89.1328]
[1744502940417,0.03,132.79,132.75,89.1328]
[1744502940725,13.80366671,132.79,132.75,89.1328]
[1744502941647,13.77366671,132.78,132.75,89.1328]
[1744502942635,0.03,132.79,132.75,89.1328]
[1744502942836,13.77366671,132.78,132.75,89.1328]
[1744502943533,0.03,132.79,132.76,13.77366671]
[1744502943943,0.03,132.79,132.77,13.77366671]
[1744502944632,0.03,132.79,132.77,95.37356671]
[1744502945330,0.03,132.79,132.78,7.5312]
[1744502945844,0.03,132.79,132.78,21.30486671]
[1744502946715,0.03,132.79,132.78,109.54476671]
[1744502949541,0.03,132.8,132.78,109.68692828]
[1744502949720,0.03,132.84,132.79,14.20015142]
[1744502949920,0.03,132.84,132.83,13.77366671]
[1744502950146,0.03,132.84,132.83,81.5999]
[1744502950947,0.03,132.84,132.83,102.01356671]
[1744502951439,0.03,132.84,132.83,109.54196671]
[1744502955147,0.03,132.84,132.83,95.7683]
[1744502955837,13.80366671,132.84,132.78,83.1959]
[1744502956138,13.77366671,132.83,132.79,7.5306]
[1744502956336,13.77366671,132.8,132.78,81.5999]
[1744502956520,13.77366671,132.79,132.78,81.5999]
[1744502957116,13.77366671,132.8,132.78,81.5999]
[1744502957320,13.77366671,132.81,132.78,81.5999]
[1744502957539,13.77366671,132.82,132.78,81.5999]
[1744502958120,21.30266671,132.82,132.78,81.5999]
[1744502958321,13.77366671,132.81,132.78,81.5999]
[1744502959122,7.529,132.82,132.75,14.1727]
[1744502959123,13.77366671,132.79,132.75,14.1727]
[1744502959437,13.77366671,132.79,132.75,95.7726]
[1744502960039,13.77366671,132.79,132.75,88.2399]
[1744502960040,21.30426671,132.79,132.75,88.2399]
[1744502961449,13.77366671,132.79,132.75,88.2399]
[1744502961948,18.64964886,132.83,132.75,95.7725]
[1744502962126,13.77366671,132.8,132.75,109.54616671]
[1744502963144,7.5284,132.83,132.76,13.77366671]
[1744502963346,13.77366671,132.83,132.78,13.77366671]
[1744502964247,13.77366671,132.83,132.79,7.5306]
[1744502965436,21.30206671,132.83,132.78,21.30466671]
[1744502965846,13.77366671,132.82,132.78,7.531]
[1744502966050,13.77366671,132.82,132.78,89.1309]
[1744502966245,13.77366671,132.8,132.78,81.5999]
[1744502966442,13.77366671,132.8,132.75,109.54606671]
[1744502968438,13.77366671,132.81,132.76,13.77366671]
[1744502969661,7.5291,132.82,132.76,21.30576671]
[1744502969959,13.77366671,132.81,132.76,21.30576671]
[1744502970463,13.77366671,132.81,132.76,7.5321]
[1744502970644,13.77366671,132.81,132.76,21.30576671]
[1744502970850,13.77366671,132.79,132.76,89.132]
[1744502971047,13.77366671,132.79,132.76,81.5999]
[1744502971242,13.77366671,132.79,132.76,89.132]
[1744502971442,13.77366671,132.8,132.76,89.132]
[1744502972242,7.5579,132.84,132.78,13.77366671]
[1744502972457,13.77366671,132.83,132.78,95.37356671]
[1744502973269,21.30216671,132.83,132.78,102.90466671]
[1744502974362,13.77366671,132.82,132.78,89.131]
[1744502974562,7.5578,132.84,132.78,89.131]
[1744502974864,13.80366671,132.84,132.79,13.77366671]
[1744502975056,13.77366671,132.83,132.78,102.90466671]
[1744502975439,0.03,132.84,132.78,102.90466671]
[1744502975640,13.77366671,132.83,132.78,102.90466671]
[1744502976763,13.80366671,132.84,132.79,13.77366671]
[1744502976963,0.03,132.84,132.8,13.77366671]
[1744502977362,0.03,132.84,132.8,95.37356671]
[1744502977657,0.03,132.84,132.81,13.77366671]
[1744502977848,0.03,132.84,132.82,7.5289]
[1744502978961,13.77366671,132.86,132.82,7.5289]
[1744502979742,13.77366671,132.87,132.82,21.30256671]
[1744502979953,13.77366671,132.88,132.83,13.77366671]
[1744502981272,13.77366671,132.88,132.84,7.5278]
[1744502982665,13.77366671,132.87,132.84,7.5278]
[1744502983461,13.77366671,132.87,132.83,7.5281]
[1744502985556,13.77366671,132.87,132.83,89.128]
[1744502986158,13.77366671,132.85,132.81,7.5294]
[1744502986470,13.77366671,132.83,132.81,7.5294]
[1744502986646,13.77366671,132.83,132.81,81.5999]
[1744502988171,13.77366671,132.82,132.79,81.5999]
[1744502988374,13.77366671,132.81,132.79,81.5999]
[1744502988584,13.77366671,132.82,132.79,81.5999]
[1744502989385,13.77366671,132.82,132.79,89.1304]
[1744502990085,21.30206671,132.83,132.79,81.5999]
[1744502990262,13.77366671,132.82,132.79,81.5999]
[1744502991875,7.5272,132.85,132.79,81.5999]
[1744502992185,13.77366671,132.83,132.79,81.5999]
[1744502992387,13.77366671,132.82,132.79,81.5999]
[1744502992590,13.77366671,132.83,132.79,89.1304]
[1744502994873,21.30206671,132.83,132.79,81.5999]
[1744502995383,13.77366671,132.83,132.79,81.5999]
[1744502995797,13.77366671,132.83,132.79,89.1305]
[1744502996596,13.77366671,132.82,132.79,81.5999]
[1744502996904,13.77366671,132.81,132.79,81.5999]
[1744502997070,13.77366671,132.81,132.76,102.09356671]
[1744502997274,8.80410312,132.8,132.76,88.3199]
[1744502997510,8.80410312,132.81,132.76,97.12400312]
[1744502998297,8.80410312,132.81,132.76,104.65600312]
[1744502999686,18.8182,132.85,132.77,8.80410312]
[1744502999894,6.3666,132.86,132.79,8.80410312]
[1744503000098,8.80410312,132.84,132.79,8.80410312]
[1744503000476,8.80410312,132.82,132.77,81.5999]
[1744503000689,8.80410312,132.83,132.78,8.80410312]
[1744503000889,8.80410312,132.83,132.77,81.5999]
[1744503001092,8.80410312,132.84,132.79,8.80410312]
[1744503001501,8.80410312,132.84,132.8,7.5301]
[1744503001701,8.80410312,132.84,132.8,89.13]
[1744503002007,8.80410312,132.85,132.8,89.13]
[1744503002311,0.03,132.89,132.82,8.80410312]
[1744503002518,8.80410312,132.88,132.83,8.80410312]
[1744503002818,8.80410312,132.88,132.83,90.40400312]
[1744503003982,0.03,132.89,132.84,16.33190312]
[1744503004184,8.83410312,132.89,132.84,16.33190312]
[1744503005294,13.76772481,132.89,132.84,21.26552481]
[1744503005792,13.76772481,132.89,132.84,102.86542481]
[1744503006899,0.03,132.89,132.85,21.26462481]
[1744503007090,0.03,132.89,132.85,102.86452481]
[1744503007484,0.03,132.89,132.86,13.73772481]
[1744503008014,0.03,132.89,132.85,104.47902481]
[1744503011208,0.03,132.89,132.87,13.73772481]
[1744503011595,0.03,132.89,132.87,81.5999]
[1744503013393,0.03,132.89,132.87,89.126]
[1744503015012,0.03,132.89,132.87,81.5999]
[1744503015489,13.73772481,132.88,132.85,83.2144]
[1744503015698,13.73772481,132.88,132.85,81.5999]
[1744503015895,13.73772481,132.87,132.85,81.5999]
[1744503016205,13.73772481,132.88,132.85,81.5999]
[1744503019704,13.73772481,132.86,132.83,81.5999]
[1744503019905,13.73772481,132.84,132.81,81.5999]
[1744503020106,13.73772481,132.82,132.81,81.5999]
[1744503020414,13.73772481,132.82,132.79,1.5445]
[1744503020611,13.73772481,132.81,132.78,81.5999]
[1744503020914,18.64964886,132.86,132.78,89.1309]
[1744503021215,13.73772481,132.82,132.78,89.1309]
[1744503021511,13.73772481,132.81,132.77,11.64312729]
[1744503021820,13.73772481,132.83,132.78,13.73772481]
[1744503022111,13.73772481,132.81,132.76,102.86982481]
[1744503023416,21.26712481,132.82,132.77,13.73772481]
[1744503024015,13.73772481,132.82,132.77,13.73772481]
[1744503024213,13.73772481,132.82,132.78,13.73772481]
[1744503024518,45.58379681,132.88,132.76,89.1321]
[1744503024519,13.73772481,132.84,132.79,13.73772481]
[1744503025098,13.73772481,132.84,132.79,21.26782481]
[1744503025311,13.73772481,132.82,132.77,13.73772481]
[1744503026311,13.73772481,132.82,132.77,21.26932481]
[1744503026510,13.73772481,132.82,132.77,102.86922481]
[1744503029512,8.80120474,132.82,132.77,97.93270474]
[1744503031109,8.80120474,132.82,132.77,89.1315]
[1744503033023,8.80120474,132.82,132.77,97.93270474]
[1744503034823,8.80120474,132.83,132.78,8.80120474]
[1744503035926,8.80120474,132.82,132.77,89.1315]
[1744503037204,8.80120474,132.81,132.77,89.1315]
[1744503039429,7.5289,132.83,132.77,97.93270474]
[1744503039626,8.80120474,132.82,132.77,97.93270474]
[1744503040126,8.80120474,132.81,132.77,97.93270474]
[1744503040331,7.5272,132.85,132.77,81.5999]
[1744503040332,8.80120474,132.8,132.77,81.5999]
[1744503040643,8.80120474,132.79,132.77,81.5999]
[1744503041124,8.80120474,132.81,132.77,81.5999]
[1744503042124,8.80120474,132.81,132.77,89.1316]
[1744503042731,6.1317,132.86,132.78,8.80120474]
[1744503042925,8.80120474,132.83,132.78,90.40110474]
[1744503044332,8.80120474,132.83,132.79,7.5306]
[1744503044832,7.528,132.84,132.79,7.5306]
[1744503045008,8.80120474,132.83,132.79,7.5306]
[1744503045351,7.528,132.84,132.79,7.5306]
[1744503045537,8.80120474,132.83,132.79,7.5306]
[1744503046440,7.5275,132.85,132.79,7.5306]
[1744503046731,8.80120474,132.83,132.79,7.5306]
[1744503046930,8.80120474,132.83,132.79,89.1305]
[1744503047839,8.80120474,132.82,132.79,81.5999]
[1744503048719,6.1317,132.86,132.79,89.1305]
[1744503048720,7.5272,132.85,132.79,89.1305]
[1744503049024,8.80120474,132.83,132.79,89.1305]
[1744503049225,8.80120474,132.82,132.79,89.1305]
[1744503050831,8.80120474,132.82,132.79,81.5999]
[1744503053231,8.80120474,132.81,132.79,81.5999]
[1744503055136,8.80120474,132.82,132.79,81.5999]
[1744503056249,8.80120474,132.81,132.79,81.5999]
[1744503058642,8.80120474,132.81,132.78,7.531]
[1744503059146,8.80120474,132.82,132.78,7.531]
[1744503059928,6.78,132.88,132.8,10.45130474]
[1744503060130,8.80120474,132.85,132.81,7.5295]
[1744503060344,8.80120474,132.85,132.81,89.1294]
[1744503060837,8.80120474,132.86,132.81,97.93060474]
[1744503061547,8.80120474,132.85,132.81,89.1294]
[1744503066155,8.80120474,132.86,132.81,97.93060474]
[1744503066762,7.5262,132.87,132.81,89.1294]
[1744503066763,8.80120474,132.85,132.81,89.1294]
[1744503069761,8.80120474,132.82,132.81,81.5999]
[1744503070049,8.80120474,132.82,132.78,7.5312]
[1744503070243,8.80120474,132.8,132.78,81.5999]
[1744503070428,8.80120474,132.79,132.78,81.5999]
[1744503070633,8.80120474,132.8,132.77,13.29322729]
[1744503070841,8.80120474,132.8,132.77,20.82492729]
[1744503071161,8.80120474,132.8,132.77,13.29322729]
[1744503071656,8.80120474,132.8,132.77,1.6501]
[1744503071968,8.80120474,132.79,132.77,1.6501]
[1744503072544,8.80120474,132.8,132.77,9.1818]
[1744503073570,8.80120474,132.81,132.77,9.1818]
[1744503073761,8.80120474,132.8,132.77,1.6501]
[1744503075463,8.80120474,132.79,132.76,88.3999]
[1744503075940,8.80120474,132.79,132.76,95.9322]
[1744503076141,8.80120474,132.8,132.76,95.9322]
[1744503076872,8.80120474,132.79,132.76,95.9322]
[1744503078663,8.80120474,132.79,132.76,88.3999]
[1744503079262,8.80120474,132.79,132.76,81.5999]
[1744503080262,8.80120474,132.79,132.76,89.1322]
[1744503080873,8.80120474,132.8,132.76,89.1322]
[1744503081678,26.3496,132.83,132.76,89.1322]
[1744503081880,8.80120474,132.8,132.76,89.1322]
[1744503082045,8.80120474,132.82,132.76,97.93340474]
[1744503082245,8.80120474,132.82,132.77,8.80120474]
[1744503082585,26.17804886,132.83,132.78,8.80120474]
[1744503082586,8.80120474,132.83,132.78,8.80120474]
[1744503082747,8.80120474,132.83,132.78,90.40110474]
[1744503083067,8.80120474,132.83,132.79,7.5306]
[1744503084079,8.80120474,132.82,132.78,89.1309]
[1744503084366,18.64964886,132.84,132.78,97.93210474]
[1744503084542,8.80120474,132.83,132.78,97.93210474]
[1744503085171,7.5268,132.86,132.8,10.30240474]
[1744503085380,8.80120474,132.85,132.8,91.90230474]
[1744503085573,7.5268,132.86,132.8,91.90230474]
[1744503085787,18.64964886,132.88,132.81,8.80120474]
[1744503086070,8.80120474,132.86,132.81,8.80120474]
[1744503086844,8.80120474,132.86,132.81,16.33020474]
[1744503088354,8.80120474,132.86,132.81,97.93010474]
[1744503089476,26.17534886,132.88,132.81,97.93010474]
[1744503089682,8.80120474,132.86,132.81,97.93010474]
[1744503091087,8.80120474,132.87,132.82,8.80120474]
[1744503093161,8.80120474,132.87,132.82,16.32990474]
[1744503093885,8.80120474,132.87,132.82,97.92980474]
[1744503094791,0.03,132.89,132.84,8.80120474]
[1744503095084,8.83120474,132.89,132.86,1.6648]
[1744503095394,8.80120474,132.88,132.86,1.6648]
[1744503095590,8.80120474,132.88,132.83,16.90450474]
[1744503095877,0.03,132.89,132.83,98.50440474]
[1744503096177,8.80120474,132.88,132.83,98.50440474]
[1744503096565,8.80120474,132.87,132.83,89.7032]
[1744503097481,16.32670474,132.88,132.83,98.50440474]
[1744503097659,16.32670474,132.88,132.83,89.7032]
[1744503097660,8.80120474,132.87,132.83,89.7032]
[1744503098569,16.32740474,132.87,132.83,89.7032]
[1744503099180,8.80120474,132.86,132.83,83.2647]
[1744503100957,16.32800474,132.86,132.83,83.2647]
[1744503101179,8.80120474,132.86,132.83,83.2647]
[1744503101680,16.32770474,132.87,132.83,83.2647]
[1744503106086,7.555,132.89,132.83,83.2647]
[1744503106276,18.64964886,132.88,132.83,83.2647]
[1744503106585,8.80120474,132.86,132.83,83.2647]
[1744503107595,16.32810474,132.86,132.83,83.2647]
[1744503107990,8.80120474,132.85,132.83,1.6648]
[1744503108493,8.80120474,132.84,132.81,81.5999]
[1744503108692,8.80120474,132.82,132.77,13.15042729]
[1744503108887,8.80120474,132.78,132.77,11.64312729]
[1744503109379,8.80120474,132.78,132.76,11.64312729]
[1744503109701,34.9826536,132.77,132.76,11.64312729]
[1744503111189,35.40913831,132.77,132.76,11.64312729]
[1744503112696,35.40913831,132.77,132.75,0.063]
[1744503112697,19.07613357,132.76,132.75,0.063]
[1744503112876,27.87733831,132.76,132.73,0.063]
[1744503113077,8.80120474,132.74,132.73,0.063]
[1744503114292,8.80120474,132.75,132.73,0.063]
[1744503114876,8.80120474,132.76,132.73,0.063]
[1744503115094,16.33310474,132.77,132.73,0.063]
[1744503116297,7.5319,132.77,132.73,0.063]
[1744503116478,16.33310474,132.77,132.73,0.063]
[1744503117300,21.29554125,132.77,132.73,0.063]
[1744503117594,13.76364125,132.76,132.73,0.063]
[1744503119697,32.41329011,132.76,132.73,0.063]
[1744503119883,21.29604125,132.76,132.73,0.063]
[1744503120512,13.76364125,132.76,132.73,0.063]
[1744503120695,18.64964886,132.76,132.73,0.063]
[1744503123186,13.76364125,132.76,132.73,0.063]
[1744503123382,13.76364125,132.75,132.73,0.063]
[1744503123585,13.76364125,132.74,132.73,0.063]
[1744503124086,13.76364125,132.75,132.73,0.063]
[1744503125203,21.29664125,132.75,132.73,0.063]
[1744503126105,37.47784886,132.78,132.73,0.063]
[1744503126405,13.76364125,132.76,132.73,0.063]
[1744503127107,13.76364125,132.75,132.73,0.063]
[1744503127295,21.29704125,132.75,132.73,0.063]
[1744503128688,32.41329011,132.74,132.73,0.063]
[1744503129308,39.94679011,132.74,132.73,0.063]
[1744503131311,13.76364125,132.75,132.73,0.063]
[1744503131603,13.76364125,132.76,132.73,0.063]
[1744503131798,13.76364125,132.75,132.73,0.063]
[1744503132509,18.64964886,132.77,132.73,0.063]
[1744503132705,13.76364125,132.76,132.73,0.063]
[1744503133311,21.29634125,132.76,132.73,0.063]
[1744503133813,13.76364125,132.75,132.73,0.063]
[1744503134400,13.76364125,132.74,132.73,0.063]
[1744503135516,21.29714125,132.74,132.73,0.063]
[1744503137308,16.3463468,132.74,132.73,0.063]
[1744503138417,34.99599566,132.74,132.73,0.063]
[1744503139891,35.42248037,132.74,132.73,0.063]
[1744503145820,35.42248037,132.74,132.67,18.0158468]
[1744503145821,0.42648471,132.69,132.67,0.063]
[1744503146122,9.23933151,132.68,132.67,0.063]
[1744503147118,8.8128468,132.68,132.67,0.063]
[1744503147310,27.46249566,132.68,132.67,0.063]
[1744503147815,35.42588037,132.68,132.67,0.063]
[1744503148323,35.42588037,132.68,132.67,0.0001]
[1744503148799,35.23933151,132.66,132.64,0.063]
[1744503149198,34.8128468,132.66,132.64,0.063]
[1744503149407,26.66352314,132.68,132.64,0.063]
[1744503149408,8.8128468,132.67,132.64,0.063]
[1744503149917,8.8128468,132.66,132.64,0.063]
[1744503151821,16.3508468,132.66,132.64,0.063]
[1744503152214,41.57589566,132.66,132.64,0.063]
[1744503152398,18.64964886,132.65,132.64,0.063]
[1744503152602,27.46249566,132.65,132.64,0.063]
[1744503154124,35.00109566,132.65,132.64,0.063]
[1744503154508,26.18824886,132.65,132.64,0.063]
[1744503154715,35.00109566,132.65,132.64,0.063]
[1744503155920,8.8128468,132.65,132.64,0.063]
[1744503156226,16.3514468,132.65,132.64,0.063]
[1744503157232,8.8128468,132.65,132.64,0.063]
[1744503157431,16.3514468,132.65,132.64,0.063]
[1744503157613,8.8128468,132.65,132.64,0.063]
[1744503159328,16.3514468,132.65,132.64,0.063]
[1744503159834,8.8128468,132.65,132.64,0.063]
[1744503160026,6.66,132.68,132.64,0.063]
[1744503160228,8.8128468,132.68,132.64,0.063]
[1744503160547,42.08354877,132.72,132.65,8.8128468]
[1744503160548,0.03,132.72,132.65,8.8128468]
[1744503160710,8.8128468,132.71,132.66,10.3418468]
[1744503160916,8.8128468,132.71,132.66,1.529]
[1744503160917,8.8128468,132.67,132.66,1.529]
[1744503163541,13.7826457,132.67,132.66,1.529]
[1744503164734,13.7826457,132.69,132.66,1.529]
[1744503167440,7.5358,132.7,132.66,1.529]
[1744503167637,13.7826457,132.69,132.66,1.529]
[1744503170033,21.3184457,132.7,132.66,1.529]
[1744503170741,13.7826457,132.69,132.66,1.529]
[1744503172137,21.3190457,132.69,132.66,1.529]
[1744503172344,21.3190457,132.69,132.64,81.6629]
[1744503172345,13.7826457,132.67,132.64,81.6629]
[1744503172542,13.7826457,132.66,132.64,0.063]
[1744503172743,13.7826457,132.65,132.64,0.063]
[1744503172919,32.43229456,132.65,132.64,0.063]
[1744503174253,39.97089456,132.65,132.64,0.063]
[1744503174851,26.18824886,132.65,132.64,0.063]
[1744503175157,39.97089456,132.65,132.64,0.063]
[1744503175454,54.18002497,132.65,132.64,0.063]
[1744503175941,18.64964886,132.64,132.63,0.063]
[1744503176141,0.42648471,132.63,132.62,0.063]
[1744503176354,14.20913041,132.63,132.62,0.063]
[1744503177735,21.74883041,132.63,132.62,0.063]
[1744503177936,39.97199456,132.63,132.62,0.063]
[1744503178344,40.39847927,132.63,132.62,0.063]
[1744503182146,39.97199456,132.63,132.62,0.063]
[1744503186155,13.7826457,132.63,132.62,0.063]
[1744503187979,18.64964886,132.64,132.62,0.063]
[1744503188163,13.7826457,132.63,132.62,0.063]
[1744503190552,26.18904886,132.64,132.62,0.063]
[1744503190851,13.7826457,132.63,132.62,0.063]
[1744503193968,3.7826457,132.63,132.62,0.063]
[1744503195065,26.18904886,132.64,132.62,0.063]
[1744503195263,8.82825837,132.63,132.62,0.063]
[1744503195880,18.64964886,132.64,132.62,0.063]
[1744503196046,8.82825837,132.63,132.62,0.063]
[1744503199063,35.01760723,132.63,132.62,0.063]
[1744503199773,8.82825837,132.63,132.62,0.063]
[1744503200150,14.1986,132.65,132.62,0.063]
[1744503200362,8.82825837,132.64,132.62,0.063]
[1744503200948,8.82825837,132.63,132.62,0.063]
[1744503202071,8.82825837,132.64,132.62,0.063]
[1744503202452,7.5386,132.65,132.62,0.063]
[1744503202662,0.03,132.69,132.63,8.82825837]
[1744503202866,0.03,132.69,132.67,8.82825837]
[1744503203060,0.03,132.69,132.68,8.82825837]
[1744503203668,0.03,132.69,132.68,90.42815837]
[1744503203872,0.03,132.69,132.68,97.96505837]
[1744503205355,0.03,132.69,132.68,102.90732518]
[1744503210576,0.03,132.69,132.66,6.68]
[1744503210768,13.77052518,132.68,132.66,6.68]
[1744503210956,0.03,132.69,132.66,14.218]
[1744503211161,0.03,132.69,132.68,26.0]
[1744503211358,0.03,132.69,132.68,39.77052518]
[1744503211972,0.03,132.69,132.68,47.30742518]
[1744503214065,0.03,132.69,132.68,128.90732518]
[1744503216384,0.03,132.69,132.68,89.1368]
[1744503217580,0.03,132.69,132.68,81.5999]
[1744503218087,0.03,132.69,132.68,89.1368]
[1744503220178,0.03,132.69,132.68,81.5999]
[1744503222011,0.03,132.69,132.62,0.063]
[1744503222012,18.64964886,132.67,132.62,0.063]
[1744503222307,32.42017404,132.63,132.62,0.063]
[1744503222593,32.42017404,132.63,132.58,0.063]
[1744503222594,18.64964886,132.62,132.58,0.063]
[1744503222779,13.77052518,132.6,132.58,0.063]
[1744503223881,13.77052518,132.61,132.58,0.063]
[1744503224476,13.77052518,132.6,132.58,0.063]
[1744503227772,13.77052518,132.62,132.58,0.063]
[1744503228193,13.77052518,132.61,132.58,0.063]
[1744503228781,18.64964886,132.63,132.58,0.063]
[1744503228987,13.77052518,132.62,132.58,0.063]
[1744503229293,13.77052518,132.63,132.58,7.6056]
[1744503229491,13.77052518,132.63,132.58,21.37612518]
[1744503229668,13.77052518,132.62,132.58,7.6056]
[1744503229874,13.77052518,132.61,132.58,0.063]
[1744503230388,18.64964886,132.63,132.58,0.063]
[1744503230589,13.77052518,132.61,132.58,0.063]
[1744503232593,26.18954886,132.63,132.58,0.063]
[1744503232798,13.77052518,132.61,132.58,0.063]
[1744503233403,13.77052518,132.62,132.58,0.063]
[1744503234878,0.28432314,132.68,132.6,13.77052518]
[1744503234879,13.77052518,132.66,132.6,13.77052518]
[1744503235082,18.64964886,132.66,132.61,15.39882518]
[1744503235412,32.42017404,132.66,132.61,1.6283]
[1744503235697,13.77052518,132.65,132.61,1.6283]
[1744503236799,13.77052518,132.65,132.61,9.169]
[1744503237504,13.77052518,132.65,132.61,1.6283]
[1744503238400,21.30922518,132.65,132.61,1.6283]
[1744503238905,13.77052518,132.64,132.61,1.6283]
[1744503239101,13.77052518,132.64,132.6,89.1411]
[1744503239304,13.77052518,132.63,132.6,81.5999]
[1744503240607,13.77052518,132.64,132.6,81.5999]
[1744503241110,13.77052518,132.64,132.6,89.1412]
[1744503242200,13.77052518,132.64,132.6,81.5999]
[1744503242404,13.77052518,132.63,132.6,81.5999]
[1744503243308,8.82704693,132.63,132.6,81.5999]
[1744503243608,8.82704693,132.63,132.59,0.063]
[1744503244405,8.82704693,132.63,132.59,7.6047]
[1744503245304,8.82704693,132.61,132.59,0.063]
[1744503247112,16.36794693,132.61,132.59,0.063]
[1744503247890,8.82704693,132.6,132.59,0.063]
[1744503248208,27.47669579,132.6,132.59,0.063]
[1744503248398,35.01809579,132.6,132.59,0.063]
[1744503249206,26.19104886,132.6,132.59,0.063]
[1744503249408,35.01809579,132.6,132.59,0.063]